bitfinex-derivatives/quotes_SOLF0:USTF0_20260304
["timestamp","ask_amount","ask_price","bid_price","bid_amount"]
[1772640514255,9.759,92.196,92.122,9.767]
[1772640514547,9.759,92.196,92.109,45.91966679]
[1772640514955,31.09781795,92.201,92.131,9.766]
[1772640515852,9.759,92.197,92.131,9.766]
[1772640516049,31.44445767,92.196,92.121,9.767]
[1772640516454,9.76,92.189,92.121,9.767]
[1772640516851,7.27607894,92.21,92.132,45.91966679]
[1772640517050,9.759,92.198,92.132,45.91966679]
[1772640517255,31.75209182,92.198,92.132,45.91966679]
[1772640517949,31.75209182,92.198,92.133,9.766]
[1772640518456,31.75209182,92.198,92.132,45.91966679]
[1772640518654,31.76555737,92.22,92.132,45.91966679]
[1772640519252,19.505,92.261,92.132,45.91966679]
[1772640519253,31.81705272,92.209,92.132,45.91966679]
[1772640519453,31.81705272,92.209,92.101,45.91966679]
[1772640519657,39.15296022,92.19,92.101,45.91966679]
[1772640520049,7.27607894,92.21,92.101,45.91966679]
[1772640520458,7.27607894,92.21,92.141,9.765]
[1772640520459,9.758,92.206,92.141,9.765]
[1772640520759,31.87688128,92.212,92.136,45.91966679]
[1772640521257,9.757,92.211,92.136,45.91966679]
[1772640521460,31.67246273,92.209,92.111,45.91966679]
[1772640521654,7.27607894,92.19,92.131,9.766]
[1772640521855,31.67246273,92.209,92.131,9.766]
[1772640522858,9.759,92.193,92.131,9.766]
[1772640523359,9.76,92.187,92.122,9.767]
[1772640524257,31.71036639,92.192,92.131,9.766]
[1772640524861,9.76,92.188,92.122,9.767]
[1772640525660,31.71036639,92.192,92.111,45.91966679]
[1772640526259,31.62836563,92.189,92.111,45.91966679]
[1772640527365,9.761,92.18,92.121,9.767]
[1772640527860,31.63528903,92.172,92.09,53.19574573]
[1772640528166,31.63528903,92.169,92.09,45.91966679]
[1772640528360,9.764,92.149,92.091,9.77]
[1772640528561,31.81874614,92.148,92.091,9.77]
[1772640529065,9.762,92.164,92.071,49.17538343]
[1772640529261,7.27607894,92.21,92.09,7.27607894]
[1772640529262,31.86499752,92.189,92.09,7.27607894]
[1772640529464,31.86499752,92.189,92.091,49.17538343]
[1772640529966,31.86499752,92.189,92.113,49.17538343]
[1772640530766,9.76,92.188,92.133,9.765]
[1772640530969,31.89279578,92.211,92.131,49.17538343]
[1772640531367,9.757,92.218,92.159,9.763]
[1772640532062,9.757,92.218,92.117,19.535]
[1772640532063,31.90027922,92.23,92.151,49.17538343]
[1772640532268,31.94454655,92.254,92.171,49.17538343]
[1772640532564,33.02080621,92.275,92.171,49.17538343]
[1772640532770,33.06464313,92.259,92.171,49.17538343]
[1772640533464,33.07244596,92.252,92.171,49.17538343]
[1772640534163,33.07244596,92.252,92.108,151.957]
[1772640534164,40.39155568,92.24,92.141,49.17538343]
[1772640534363,33.11547674,92.219,92.141,49.17538343]
[1772640534875,7.27607894,92.24,92.141,49.17538343]
[1772640535261,9.755,92.229,92.169,9.762]
[1772640536471,32.72219056,92.265,92.169,49.17538343]
[1772640536771,32.72219056,92.265,92.071,456.054]
[1772640536772,40.04029995,92.26,92.171,49.17538343]
[1772640537171,9.753,92.249,92.187,9.76]
[1772640537374,9.753,92.249,92.171,49.17538343]
[1772640538075,9.753,92.249,92.19,9.76]
[1772640538373,32.76422101,92.26,92.171,49.17538343]
[1772640538682,32.76422101,92.26,92.197,9.759]
[1772640539675,42.51622101,92.26,92.197,9.759]
[1772640540076,9.753,92.251,92.188,9.76]
[1772640540278,33.16120458,92.25,92.171,49.17538343]
[1772640540670,9.753,92.249,92.187,9.76]
[1772640541374,9.754,92.244,92.178,9.761]
[1772640541775,32.33648525,92.248,92.171,49.17538343]
[1772640541965,32.33648525,92.248,92.187,9.76]
[1772640542167,32.38244243,92.273,92.171,49.17538343]
[1772640542474,7.27607894,92.26,92.17,56.45146237]
[1772640542672,32.36541437,92.259,92.17,49.17538343]
[1772640543175,32.4044434,92.239,92.17,49.17538343]
[1772640543474,32.4044434,92.239,92.13,7.27607894]
[1772640543475,32.41083616,92.214,92.131,49.17538343]
[1772640543869,161.68508351,92.263,92.131,49.17538343]
[1772640543870,39.7256059,92.2,92.131,49.17538343]
[1772640544476,31.03653483,92.196,92.132,9.766]
[1772640544878,31.03653483,92.196,92.131,49.17538343]
[1772640545076,31.07528533,92.195,92.11,7.27607894]
[1772640545379,31.07528533,92.195,92.11,49.17538343]
[1772640545571,40.84195304,92.176,92.11,49.17538343]
[1772640545773,31.11878495,92.209,92.11,56.45146237]
[1772640546174,31.11878495,92.207,92.11,56.45146237]
[1772640546382,37.87286246,92.23,92.131,49.17538343]
[1772640546878,19.98602088,92.285,92.11,7.27607894]
[1772640546879,30.63346129,92.249,92.159,49.17538343]
[1772640547180,30.63346129,92.247,92.159,49.17538343]
[1772640547374,30.6387614,92.229,92.162,9.762]
[1772640547570,7.27607894,92.23,92.135,49.17538343]
[1772640547571,30.67519693,92.227,92.135,49.17538343]
[1772640547768,30.67519693,92.225,92.135,49.17538343]
[1772640547972,30.67519693,92.223,92.135,49.17538343]
[1772640548170,30.67519693,92.22,92.135,49.17538343]
[1772640548478,30.67519693,92.218,92.135,49.17538343]
[1772640548678,37.75666292,92.217,92.135,49.17538343]
[1772640548876,7.27607894,92.2,92.116,49.17538343]
[1772640549081,37.14052349,92.2,92.116,49.17538343]
[1772640549379,9.76,92.189,92.128,9.766]
[1772640549775,37.79773511,92.197,92.116,49.17538343]
[1772640549977,7.89221837,92.196,92.116,49.17538343]
[1772640550472,29.90551674,92.197,92.116,49.17538343]
[1772640551380,29.90551674,92.197,92.136,9.765]
[1772640551685,30.77982467,92.189,92.095,49.17538343]
[1772640551880,30.77982467,92.187,92.095,49.17538343]
[1772640552079,30.77982467,92.185,92.095,49.17538343]
[1772640552278,30.75975126,92.183,92.095,49.17538343]
[1772640552584,7.26826527,92.18,92.121,9.767]
[1772640552776,7.26826527,92.2,92.121,49.17538343]
[1772640552982,38.06251506,92.2,92.121,49.17538343]
[1772640553184,7.92031537,92.199,92.121,49.17538343]
[1772640553575,30.79918359,92.198,92.121,49.17538343]
[1772640553779,7.92031537,92.197,92.121,9.767]
[1772640554076,30.83318595,92.19,92.121,9.767]
[1772640554280,30.83318595,92.188,92.101,49.17538343]
[1772640554581,30.75863298,92.186,92.121,9.767]
[1772640554776,7.26826527,92.16,92.08,49.17538343]
[1772640554973,7.26826527,92.16,92.1,9.769]
[1772640555377,38.06571434,92.16,92.08,49.17538343]
[1772640555580,30.83115206,92.158,92.08,49.17538343]
[1772640555780,30.83115206,92.156,92.08,49.17538343]
[1772640556178,7.26826527,92.16,92.08,49.17538343]
[1772640556378,30.83115206,92.178,92.101,49.17538343]
[1772640556575,30.87214599,92.199,92.101,49.17538343]
[1772640556787,30.87214599,92.179,92.101,49.17538343]
[1772640556985,13.31077802,92.219,92.058,19.547]
[1772640556986,7.26826527,92.16,92.071,49.17538343]
[1772640557181,30.87214599,92.159,92.071,49.17538343]
[1772640557384,20.17762089,92.225,92.058,19.547]
[1772640557385,30.87214599,92.181,92.1,49.17538343]
[1772640557886,9.759,92.194,92.133,9.766]
[1772640558282,7.26826527,92.2,92.12,49.17538343]
[1772640558488,7.26826527,92.2,92.142,9.765]
[1772640558888,38.12026315,92.2,92.12,49.17538343]
[1772640559078,30.85199788,92.179,92.096,45.6379824]
[1772640559481,9.763,92.161,92.103,9.769]
[1772640559684,30.85199788,92.179,92.096,45.6379824]
[1772640560191,30.85199788,92.179,92.12,9.767]
[1772640561283,37.84709873,92.2,92.116,45.6379824]
[1772640561489,13.31077802,92.239,92.116,45.6379824]
[1772640561490,7.26826527,92.22,92.121,45.6379824]
[1772640561690,30.58311391,92.223,92.18,9.76]
[1772640561989,7.26826527,92.22,92.149,45.6379824]
[1772640562383,38.11114415,92.22,92.149,45.6379824]
[1772640562581,9.758,92.209,92.161,9.763]
[1772640563185,47.86714415,92.22,92.172,9.761]
[1772640563381,38.11114415,92.22,92.149,45.6379824]
[1772640563782,9.758,92.204,92.15,9.764]
[1772640564690,30.84287888,92.22,92.151,46.11353427]
[1772640564894,32.41550281,92.238,92.151,46.11353427]
[1772640565798,9.755,92.235,92.151,46.11353427]
[1772640566102,32.41550281,92.238,92.151,46.11353427]
[1772640567302,9.757,92.214,92.151,46.11353427]
[1772640568500,9.757,92.214,92.155,9.763]
[1772640569506,30.97747139,92.199,92.137,9.765]
[1772640569900,30.97747139,92.199,92.124,46.11353427]
[1772640570899,9.757,92.216,92.162,9.762]
[1772640571095,7.26826527,92.22,92.153,46.11353427]
[1772640571508,7.26826527,92.22,92.163,9.762]
[1772640572508,7.26826527,92.22,92.17,9.762]
[1772640573505,31.24352449,92.239,92.184,9.76]
[1772640573807,31.24352449,92.239,92.153,46.11353427]
[1772640574009,31.26981917,92.217,92.153,46.11353427]
[1772640574908,31.26981917,92.217,92.17,9.762]
[1772640575109,38.86859617,92.24,92.112,13.22859004]
[1772640575401,9.763,92.159,92.063,79.24447373]
[1772640575603,7.26826527,92.12,92.063,79.24447373]
[1772640575807,10.08983094,92.157,92.063,79.24447373]
[1772640576102,7.26826527,92.15,92.063,79.24447373]
[1772640576304,10.08951499,92.161,92.071,77.67571551]
[1772640577809,7.26826527,92.16,92.071,77.67571551]
[1772640578306,7.26826527,92.16,92.015,77.66753917]
[1772640578307,17.03526527,92.12,92.015,77.66753917]
[1772640578606,7.26826527,92.1,92.015,77.66753917]
[1772640578908,7.26826527,92.1,91.993,77.08143931]
[1772640579111,7.26826527,92.08,91.993,77.08143931]
[1772640579607,7.26826527,92.1,92.001,77.07282506]
[1772640579809,9.769,92.099,92.001,77.07282506]
[1772640580199,151.89,92.149,92.001,77.07282506]
[1772640580399,9.767,92.119,92.021,77.45995694]
[1772640581201,9.769,92.102,92.021,77.45995694]
[1772640581504,7.26826527,92.1,92.021,77.45995694]
[1772640582010,9.769,92.099,92.021,77.45995694]
[1772640582605,7.26826527,92.1,92.021,77.45995694]
[1772640582801,9.771,92.082,92.021,77.45995694]
[1772640583402,9.769,92.098,92.021,77.45995694]
[1772640583608,7.26826527,92.1,92.021,77.45995694]
[1772640583909,7.26826527,92.12,92.031,77.50479481]
[1772640584211,7.26826527,92.12,92.033,77.50479481]
[1772640584514,9.767,92.118,92.033,77.50479481]
[1772640584909,9.767,92.118,92.035,77.45023191]
[1772640585118,151.818,92.193,92.051,77.45023191]
[1772640585409,151.8,92.204,92.071,77.45023191]
[1772640585611,9.763,92.159,92.074,77.44263614]
[1772640586113,7.26826527,92.17,92.074,77.44263614]
[1772640586413,7.26826527,92.2,92.091,77.43201133]
[1772640586811,7.26826527,92.2,92.103,77.43201133]
[1772640586812,9.76,92.187,92.103,77.43201133]
[1772640587005,7.26826527,92.16,92.06,7.26826527]
[1772640587205,7.26826527,92.16,92.061,77.43201133]
[1772640587610,8.00785344,92.17,92.073,77.42457025]
[1772640587812,7.26826527,92.14,92.073,77.42457025]
[1772640588011,9.765,92.135,92.073,77.42457025]
[1772640588912,7.26826527,92.12,92.047,77.32140791]
[1772640589104,7.26826527,92.1,92.001,77.32140791]
[1772640589306,7.26826527,92.1,92.015,77.31418388]
[1772640589503,7.26826527,92.08,92.015,77.31418388]
[1772640590315,7.26826527,92.08,91.97,7.26826527]
[1772640590515,7.26826527,92.08,91.971,77.23565876]
[1772640590718,7.26826527,92.08,91.993,77.23565876]
[1772640591012,7.26826527,92.06,91.993,77.23565876]
[1772640591217,7.26826527,92.04,91.967,77.23565876]
[1772640591813,7.26826527,92.04,91.971,77.22851746]
[1772640592015,7.26826527,92.01,91.947,77.22872617]
[1772640592211,151.995,92.086,91.874,19.587]
[1772640592212,9.775,92.041,91.97,77.22872617]
[1772640592412,265.76424919,92.084,91.97,77.22872617]
[1772640592614,7.26826527,92.05,91.97,77.22872617]
[1772640592916,7.26826527,92.06,91.97,77.22872617]
[1772640593211,265.76424919,92.084,91.97,77.22872617]
[1772640593212,7.26826527,92.04,91.97,77.22872617]
[1772640593420,9.776,92.033,91.97,77.22872617]
[1772640593915,9.777,92.021,91.97,77.22872617]
[1772640594216,7.26826527,92.02,91.946,103.83055013]
[1772640594617,9.78,91.999,91.946,26.52241553]
[1772640594818,7.26826527,92.0,91.946,9.90941553]
[1772640595021,9.782,91.978,91.946,0.00041553]
[1772640595519,7.26826527,92.0,91.946,0.00041553]
[1772640595714,9.781,91.99,91.946,0.00041553]
[1772640596017,7.26826527,92.0,91.946,0.00041553]
[1772640596420,32.90010892,92.05,91.946,0.00041553]
[1772640596421,7.26826527,92.02,91.946,0.00041553]
[1772640596720,7.26826527,92.03,91.946,76.9764563]
[1772640596916,9.778,92.016,91.946,76.9764563]
[1772640597321,7.26826527,92.03,91.946,76.9764563]
[1772640597521,9.777,92.028,91.948,86.75423399]
[1772640597724,9.777,92.028,91.948,76.96923399]
[1772640598120,9.778,92.017,91.948,76.96923399]
[1772640598418,7.26826527,92.01,91.946,0.00041553]
[1772640599013,9.779,92.006,91.946,0.00041553]
[1772640599319,7.26826527,92.01,91.946,0.00041553]
[1772640599514,7.26826527,92.01,91.952,76.95009645]
[1772640599716,7.26826527,92.03,91.952,76.95009645]
[1772640600023,7.26826527,92.01,91.952,76.95009645]
[1772640600219,9.779,92.009,91.946,0.00041553]
[1772640600426,7.26826527,92.03,91.946,0.00041553]
[1772640600925,9.778,92.021,91.948,77.70095348]
[1772640601625,7.26826527,92.03,91.948,77.70095348]
[1772640602028,7.26826527,92.04,91.974,77.69495199]
[1772640602426,7.26826527,92.03,91.974,77.69495199]
[1772640602625,7.26826527,92.03,91.95,77.5270102]
[1772640603027,7.26826527,92.02,91.95,77.5270102]
[1772640603429,9.778,92.019,91.95,87.3120102]
[1772640603621,7.26826527,92.02,91.95,77.5270102]
[1772640604028,7.26826527,92.0,91.946,0.00041553]
[1772640605330,7.26826527,92.01,91.946,0.00041553]
[1772640605732,7.26826527,92.01,91.947,86.94936977]
[1772640605926,7.26826527,92.01,91.947,77.16436977]
[1772640606328,7.26826527,91.99,91.946,0.00041553]
[1772640607227,7.26826527,91.97,91.88,77.08948882]
[1772640607623,7.26826527,91.97,91.908,9.789]
[1772640607929,7.26826527,91.99,91.908,77.08351975]
[1772640608331,7.26826527,91.97,91.872,77.08351975]
[1772640609223,7.26826527,91.97,91.871,10.02538376]
[1772640609224,7.26826527,91.97,91.886,76.95949415]
[1772640609735,7.26826527,91.95,91.886,76.95949415]
[1772640610027,9.785,91.946,91.886,76.95949415]
[1772640610228,7.26826527,91.95,91.886,76.95949415]
[1772640610434,7.26826527,91.97,91.901,89.03675445]
[1772640610734,7.26826527,91.98,91.901,79.24675445]
[1772640610936,9.78,91.996,91.926,9.787]
[1772640611237,9.78,91.996,91.926,89.03375445]
[1772640611534,7.26826527,92.0,91.948,9.785]
[1772640612031,7.26826527,92.02,91.949,79.24675445]
[1772640612541,152.017,92.072,91.895,152.309]
[1772640612542,7.29264401,92.03,91.972,79.24675445]
[1772640612731,7.29264401,92.04,91.972,79.24675445]
[1772640613232,7.29264401,92.04,91.931,79.24675445]
[1772640613437,7.29264401,92.02,91.931,79.24675445]
[1772640613638,9.778,92.019,91.951,9.785]
[1772640614139,7.29264401,92.0,91.953,9.785]
[1772640614331,7.29264401,92.02,91.953,9.785]
[1772640614634,7.29264401,92.02,91.954,79.24675445]
[1772640614841,7.29264401,92.0,91.921,79.24675445]
[1772640615336,8.61244145,92.048,91.855,152.375]
[1772640615337,9.779,92.01,91.942,79.24675445]
[1772640615537,8.61244145,92.048,91.855,152.375]
[1772640615538,7.29264401,91.98,91.881,79.24675445]
[1772640615733,7.29264401,91.98,91.911,79.24675445]
[1772640616832,7.29264401,92.0,91.911,79.24675445]
[1772640617338,7.29264401,91.98,91.926,79.24675445]
[1772640617836,9.782,91.98,91.921,9.788]
[1772640618038,7.29264401,92.02,91.92,7.29264401]
[1772640618241,7.29264401,92.04,91.941,79.24675445]
[1772640618437,9.776,92.033,91.965,9.783]
[1772640618737,7.29264401,92.04,91.966,79.28104971]
[1772640619034,7.29264401,92.02,91.949,79.28104971]
[1772640619437,9.781,91.987,91.929,9.787]
[1772640619938,7.29264401,92.0,91.929,79.28104971]
[1772640620140,7.29264401,92.02,91.929,79.28104971]
[1772640620542,7.29264401,92.02,91.92,7.29264401]
[1772640620543,8.63706047,92.041,91.961,79.28104971]
[1772640620837,26.70304958,92.099,91.961,79.28104971]
[1772640620838,7.29264401,92.03,91.961,79.28104971]
[1772640621443,7.29264401,92.03,91.95,9.785]
[1772640621641,7.29264401,92.01,91.938,79.28104971]
[1772640621837,7.29264401,91.99,91.913,79.28104971]
[1772640622544,9.78,91.999,91.913,79.28104971]
[1772640622737,7.29264401,92.03,91.93,7.29264401]
[1772640623044,17.06964401,92.03,91.963,89.06504971]
[1772640623445,17.06964401,92.03,91.939,79.29995531]
[1772640623446,9.779,92.012,91.939,79.29995531]
[1772640623643,7.29264401,92.03,91.939,79.29995531]
[1772640623848,7.29264401,92.03,91.941,79.29995531]
[1772640624438,9.777,92.029,91.941,79.29995531]
[1772640624947,9.778,92.02,91.962,9.784]
[1772640625342,9.778,92.02,91.941,79.29995531]
[1772640625539,7.29264401,92.03,91.941,79.29995531]
[1772640625540,9.778,92.012,91.953,9.785]
[1772640625842,7.29264401,92.01,91.941,79.29995531]
[1772640626044,7.29264401,92.03,91.941,79.29995531]
[1772640626248,7.29264401,92.01,91.941,79.29995531]
[1772640626643,7.29264401,92.01,91.901,79.29995531]
[1772640626844,9.78,91.998,91.933,9.787]
[1772640627044,7.29264401,91.99,91.901,79.29995531]
[1772640627547,9.784,91.957,91.901,79.29995531]
[1772640628050,9.784,91.957,91.86,7.29264401]
[1772640628051,7.29264401,91.95,91.872,79.29995531]
[1772640628246,9.784,91.957,91.872,79.29995531]
[1772640628651,7.29264401,91.97,91.903,79.29995531]
[1772640629846,7.29264401,91.99,91.918,9.788]
[1772640630244,7.29264401,91.99,91.926,9.788]
[1772640630444,7.29264401,91.99,91.903,79.29995531]
[1772640630646,9.779,92.006,91.951,9.785]
[1772640630949,13.35110892,92.037,91.934,79.29995531]
[1772640630950,7.29264401,92.03,91.934,79.29995531]
[1772640631252,9.779,92.011,91.956,9.784]
[1772640631645,8.30352514,92.027,91.934,79.29995531]
[1772640631847,8.30352514,92.026,91.934,79.29995531]
[1772640632045,8.30352514,92.028,91.934,79.29995531]
[1772640632251,9.90997564,92.025,91.934,79.29995531]
[1772640632552,8.30352514,92.024,91.956,79.29995531]
[1772640632751,15.59616915,92.03,91.956,79.29995531]
[1772640632953,7.29264401,92.03,91.956,79.29995531]
[1772640633450,8.30352514,92.029,91.979,9.782]
[1772640633654,8.30352514,92.028,91.956,79.29995531]
[1772640633849,8.30352514,92.027,91.956,79.29995531]
[1772640634049,8.30352514,92.026,91.928,79.29995531]
[1772640634248,7.29264401,92.01,91.928,79.29995531]
[1772640634456,8.30352514,92.009,91.928,79.29995531]
[1772640634656,8.30352514,92.008,91.928,79.29995531]
[1772640634949,9.90997564,91.987,91.88,86.59259932]
[1772640635156,18.21350078,91.986,91.88,86.59259932]
[1772640635346,18.21350078,91.985,91.88,86.59259932]
[1772640635548,8.30352514,91.984,91.916,79.29995531]
[1772640635854,8.30352514,91.983,91.916,79.29995531]
[1772640636050,8.30352514,91.982,91.916,79.29995531]
[1772640636258,13.35110892,92.007,91.916,79.29995531]
[1772640636259,8.30352514,91.981,91.916,79.29995531]
[1772640636554,8.30352514,92.0,91.916,79.29995531]
[1772640636754,8.30352514,91.999,91.916,79.29995531]
[1772640636954,8.30352514,91.998,91.916,79.29995531]
[1772640637150,8.30352514,91.997,91.916,79.29995531]
[1772640637359,8.30352514,91.996,91.921,79.29995531]
[1772640637650,8.30352514,91.995,91.92,86.59259932]
[1772640637847,8.30352514,91.994,91.92,79.29995531]
[1772640638046,8.30352514,91.993,91.949,9.785]
[1772640638250,8.30352514,91.992,91.92,79.29995531]
[1772640638548,9.781,91.99,91.92,79.29995531]
[1772640638751,8.30352514,91.989,91.92,79.29995531]
[1772640638947,8.30352514,91.988,91.92,79.29995531]
[1772640639151,8.30352514,91.987,91.92,79.29995531]
[1772640639354,8.30352514,91.986,91.939,9.786]
[1772640639553,8.30352514,91.985,91.939,9.786]
[1772640639751,8.30352514,91.984,91.92,79.29995531]
[1772640639949,8.30352514,91.983,91.92,79.29995531]
[1772640640259,8.30352514,91.995,91.92,86.59259932]
[1772640640458,8.30352514,91.994,91.92,86.59259932]
[1772640640754,7.29264401,92.02,91.938,89.08595531]
[1772640640755,8.30352514,91.993,91.938,89.08595531]
[1772640640954,8.30352514,91.992,91.938,89.08595531]
[1772640641157,0.00031539,92.019,91.944,66.4453427]
[1772640641453,7.29264401,92.06,91.982,61.38203044]
[1772640641656,7.29264401,92.08,91.982,61.38203044]
[1772640642156,7.29264401,92.06,91.982,61.38203044]
[1772640643359,9.775,92.049,91.982,61.38203044]
[1772640643755,7.29264401,92.06,91.982,61.38203044]
[1772640644557,7.29264401,92.06,92.003,9.779]
[1772640644855,7.29264401,92.06,91.982,61.38203044]
[1772640645052,9.774,92.05,91.991,9.781]
[1772640646053,17.06564401,92.06,92.0,9.78]
[1772640646961,17.06564401,92.06,92.009,9.779]
[1772640647259,124.0,92.09,91.981,61.47079418]
[1772640647260,7.29264401,92.09,91.981,61.47079418]
[1772640647559,7.29264401,92.11,92.033,61.46801434]
[1772640647960,7.29264401,92.13,92.068,9.772]
[1772640648255,7.29264401,92.11,92.033,61.46801434]
[1772640648460,9.769,92.103,92.033,61.46801434]
[1772640648961,7.29264401,92.11,92.044,9.775]
[1772640649158,7.29264401,92.12,92.033,61.46801434]
[1772640649357,7.29264401,92.14,92.033,61.46801434]
[1772640649556,9.766,92.127,92.033,61.46801434]
[1772640649955,9.767,92.116,92.054,9.774]
[1772640650258,9.767,92.116,92.033,61.46801434]
[1772640650459,7.29264401,92.12,92.033,61.46801434]
[1772640650652,9.769,92.106,92.033,61.46801434]
[1772640650857,7.29264401,92.11,92.033,61.46801434]
[1772640651056,7.29264401,92.11,92.036,9.776]
[1772640651859,9.768,92.107,92.047,9.775]
[1772640654356,7.29264401,92.11,92.056,9.774]
[1772640654562,9.767,92.117,92.056,72.57187038]
[1772640654763,9.768,92.112,92.056,62.79787038]
[1772640655864,9.767,92.123,92.056,62.79787038]
[1772640656259,9.767,92.123,92.057,9.774]
[1772640656467,7.29264401,92.11,92.056,62.79787038]
[1772640656657,7.29264401,92.09,92.028,62.76042664]
[1772640658463,9.77,92.089,92.029,9.777]
[1772640658766,7.29264401,92.11,92.029,62.96592484]
[1772640659264,7.29264401,92.11,92.038,9.776]
[1772640660366,7.29264401,92.11,92.046,62.9643899]
[1772640660761,9.769,92.101,92.046,62.9643899]
[1772640660967,9.769,92.101,92.048,9.775]
[1772640661167,9.769,92.101,92.048,74.2095608]
[1772640661369,9.768,92.113,92.058,64.43386688]
[1772640661569,7.29264401,92.13,92.058,64.43386688]
[1772640661964,8.67849948,92.149,92.058,64.43386688]
[1772640662164,7.29264401,92.14,92.058,64.43386688]
[1772640662364,7.29264401,92.14,92.03,7.29264401]
[1772640662365,20.11091663,92.216,92.07,7.29264401]
[1772640662567,7.29264401,92.15,92.097,65.08914657]
[1772640662770,7.29264401,92.15,92.074,65.08914657]
[1772640663271,7.29264401,92.15,92.008,65.08914657]
[1772640663466,7.29264401,92.05,91.987,65.08883184]
[1772640663667,7.29264401,92.05,91.911,152.282]
[1772640663668,7.29264401,92.04,91.939,65.08883184]
[1772640663966,7.29264401,92.06,91.992,65.08883184]
[1772640665273,124.0,92.09,91.992,65.08883184]
[1772640665472,7.29264401,92.08,91.992,65.08883184]
[1772640665672,7.29264401,92.06,91.992,65.08883184]
[1772640666571,7.29264401,92.08,91.992,65.08883184]
[1772640667366,7.29264401,92.08,91.959,152.203]
[1772640667367,7.29264401,92.08,91.991,64.72973224]
[1772640668268,7.29264401,92.06,91.993,64.72973224]
[1772640669072,7.29264401,92.06,91.961,64.9367247]
[1772640669576,7.29264401,92.1,91.961,64.9367247]
[1772640669577,9.776,92.032,91.973,9.782]
[1772640669969,7.29264401,92.04,91.961,64.9367247]
[1772640670366,7.29264401,92.02,91.961,64.9367247]
[1772640670771,8.69445877,92.071,91.961,64.9367247]
[1772640670772,7.29264401,92.04,91.961,64.9367247]
[1772640670974,7.29264401,92.06,91.961,64.9367247]
[1772640671272,7.29264401,92.04,91.961,64.9367247]
[1772640671570,7.29264401,92.02,91.935,63.92714209]
[1772640671771,9.781,91.986,91.916,9.789]
[1772640671979,7.29264401,91.98,91.913,63.92714209]
[1772640672569,8.69445877,92.036,91.86,7.29264401]
[1772640672570,7.29898714,92.01,91.917,64.01254836]
[1772640673071,7.29898714,91.99,91.917,64.01254836]
[1772640673476,7.29898714,91.97,91.894,64.0117418]
[1772640673671,7.29898714,91.95,91.871,74.03712556]
[1772640674072,7.29898714,91.97,91.871,74.03712556]
[1772640674378,7.29898714,91.97,91.885,64.0117418]
[1772640674977,7.29898714,91.97,91.888,74.59002765]
[1772640675779,7.29898714,91.97,91.871,10.02538376]
[1772640675780,7.29898714,91.93,91.871,10.02538376]
[1772640676372,9.79,91.906,91.871,0.00038376]
[1772640676871,9.791,91.895,91.871,0.00038376]
[1772640677071,7.29898714,91.89,91.833,64.7986042]
[1772640677479,9.792,91.887,91.802,64.34174929]
[1772640678278,9.792,91.887,91.808,74.14174929]
[1772640679078,9.793,91.875,91.808,64.34174929]
[1772640679377,9.793,91.875,91.73,29.55243741]
[1772640679378,7.29898714,91.87,91.771,64.74109918]
[1772640679579,152.298,91.902,91.771,64.74109918]
[1772640679580,7.29898714,91.85,91.771,64.74109918]
[1772640680174,9.796,91.848,91.774,64.74109918]
[1772640680376,7.29898714,91.87,91.774,64.74109918]
[1772640680982,9.796,91.847,91.774,74.54509918]
[1772640681175,7.29898714,91.87,91.774,74.54509918]
[1772640681377,7.29898714,91.88,91.774,64.74109918]
[1772640681679,7.29898714,91.86,91.787,64.61213541]
[1772640681876,8.83662141,91.915,91.787,64.61213541]
[1772640681877,7.29898714,91.87,91.787,64.61213541]
[1772640682076,9.794,91.868,91.789,64.61213541]
[1772640682681,9.794,91.868,91.789,74.41413541]
[1772640683080,7.29898714,91.87,91.789,64.61213541]
[1772640683379,7.29898714,91.88,91.789,64.61213541]
[1772640683775,152.239,91.938,91.814,64.67120656]
[1772640683976,7.29898714,91.88,91.814,64.67120656]
[1772640684973,7.29898714,91.9,91.816,64.79995364]
[1772640685685,7.29898714,91.88,91.816,64.79995364]
[1772640685983,9.793,91.877,91.816,64.79995364]
[1772640686383,7.29898714,91.86,91.792,64.79906549]
[1772640686586,9.795,91.857,91.792,64.79906549]
[1772640686784,7.29898714,91.86,91.792,64.79906549]
[1772640687082,9.796,91.847,91.792,64.79906549]
[1772640687588,7.29898714,91.86,91.792,64.79906549]
[1772640688281,9.796,91.847,91.792,64.79906549]
[1772640688484,9.796,91.847,91.769,64.22977613]
[1772640688676,152.297,91.903,91.769,64.22977613]